bitfinex-derivatives/quotes_ETHF0:USTF0_20250911
["timestamp","ask_amount","ask_price","bid_price","bid_amount"]
[1757583389931,3.2078,4410.6,4410.5,0.8464]
[1757583390338,0.321,4410.9,4410.5,0.8464]
[1757583390538,0.5248,4410.9,4410.8,0.7263]
[1757583391836,0.2038,4410.9,4410.8,0.7263]
[1757583392430,3.6122,4411.3,4411.2,0.4117]
[1757583392635,3.2078,4411.3,4411.2,0.7263]
[1757583392839,3.2078,4411.3,4411.2,1.13424]
[1757583393145,0.321,4411.6,4411.4,0.40791]
[1757583393345,0.5248,4411.6,4411.5,0.7263]
[1757583393838,0.5248,4411.6,4411.5,0.8444]
[1757583394046,0.2038,4412.2,4412.0,0.1181]
[1757583394345,0.7254,4412.2,4412.1,0.4117]
[1757583394642,0.7254,4412.2,4412.1,0.7263]
[1757583396837,0.2038,4412.2,4412.1,0.7263]
[1757583397439,0.5248,4412.2,4412.1,0.7263]
[1757583398439,0.321,4412.4,4412.1,0.4117]
[1757583398636,0.5248,4412.4,4412.3,1.13413]
[1757583398838,0.7254,4412.4,4412.3,1.13413]
[1757583402942,0.7254,4412.4,4412.3,0.7263]
[1757583403151,0.4044,4412.4,4412.0,0.40785]
[1757583403347,0.4044,4412.1,4412.0,0.40785]
[1757583403649,0.7254,4412.1,4412.0,0.92705]
[1757583405245,0.7254,4412.1,4412.0,0.40785]
[1757583405650,0.7254,4412.1,4412.0,0.61245]
[1757583405850,0.7254,4412.1,4412.0,0.92705]
[1757583406052,0.5248,4412.1,4412.0,1.25225]
[1757583406254,4.0536,4412.5,4412.4,0.92703]
[1757583406446,4.2846,4412.5,4412.4,1.13413]
[1757583407055,4.0536,4412.5,4412.4,1.13413]
[1757583412144,0.321,4412.4,4412.1,0.3146]
[1757583412450,0.7254,4412.2,4412.1,0.92705]
[1757583414251,0.321,4412.1,4411.9,0.3146]
[1757583414560,0.8516,4412.0,4411.9,0.5192]
[1757583414743,0.8516,4412.0,4411.9,0.61246]
[1757583415154,0.321,4411.9,4411.8,5.91388]
[1757583415454,0.7254,4411.9,4411.8,5.91388]
[1757583415656,0.7254,4411.9,4411.8,6.11848]
[1757583416053,0.7254,4411.9,4411.8,6.40918]
[1757583418363,0.7254,4411.9,4411.8,1.13418]
[1757583419766,0.2038,4411.9,4411.8,1.13418]
[1757583420155,0.3113,4412.2,4412.1,0.40785]
[1757583420355,0.516,4412.2,4412.1,1.12505]
[1757583420566,0.2047,4412.2,4412.1,1.12505]
[1757583421460,0.516,4412.2,4412.1,1.12505]
[1757583422058,0.2047,4412.2,4412.1,1.12505]
[1757583422362,3.9548,4412.5,4412.4,1.12503]
[1757583422661,4.1535,4412.5,4412.4,1.12503]
[1757583423965,4.2774,4412.5,4412.4,1.12503]
[1757583424364,4.0464,4412.5,4412.4,1.12503]
[1757583425067,3.9225,4412.5,4412.4,1.12503]
[1757583430661,3.2078,4412.5,4412.4,1.12503]
[1757583431164,3.7238,4412.5,4412.4,1.12503]
[1757583431560,3.9225,4412.5,4412.4,1.12503]
[1757583434562,4.0464,4412.5,4412.4,1.12503]
[1757583436373,4.0464,4412.5,4412.4,0.61433]
[1757583436669,0.2047,4412.8,4412.7,0.4075]
[1757583436971,0.516,4412.8,4412.7,1.125]
[1757583437373,0.7147,4412.8,4412.7,1.125]
[1757583444578,0.516,4412.8,4412.7,1.125]
[1757583444779,3.4388,4413.0,4412.5,0.3581]
[1757583444780,3.2078,4413.0,4412.9,0.81528]
[1757583444980,3.2078,4413.0,4412.9,1.12498]
[1757583445372,3.4125,4413.0,4412.9,1.12498]
[1757583445577,3.7238,4413.0,4412.9,1.12498]
[1757583447395,3.9225,4413.0,4412.9,1.12498]
[1757583448082,3.9225,4413.0,4412.9,0.7172]
[1757583448285,3.9225,4413.0,4412.9,1.12498]
[1757583448484,4.0494,4413.0,4412.9,1.12498]
[1757583454180,3.9225,4413.0,4412.9,1.12498]
[1757583454681,0.1262,4413.5,4413.4,1.13463]
[1757583454682,0.5221,4413.5,4413.4,1.13463]
[1757583454883,0.4222,4413.5,4413.4,1.13463]
[1757583455077,0.2135,4413.5,4413.4,1.13463]
[1757583456782,0.23,4413.9,4413.4,1.13463]
[1757583456783,3.3317,4414.5,4414.0,0.40768]
[1757583456985,3.3317,4414.5,4414.0,1.25828]
[1757583456986,0.7356,4414.1,4414.0,1.25828]
[1757583461488,0.2135,4414.1,4414.0,1.25828]
[1757583462478,0.5269,4414.1,4414.0,1.25828]
[1757583463490,0.2135,4414.1,4414.0,1.25828]
[1757583465788,0.2135,4414.1,4414.0,1.48828]
[1757583466787,0.3134,4414.3,4414.0,1.48828]
[1757583466788,0.4222,4414.6,4414.5,0.3364]
[1757583466982,0.4222,4414.6,4414.5,0.8506]
[1757583467185,0.7356,4414.6,4414.5,0.8506]
[1757583467592,0.7356,4414.6,4414.5,0.7269]
[1757583467795,0.7356,4414.6,4414.5,1.13453]
[1757583468090,0.7356,4414.6,4414.5,0.3148]
[1757583468296,0.7356,4414.6,4414.5,0.72243]
[1757583468483,0.7356,4414.6,4414.5,0.3148]
[1757583468683,0.7356,4414.6,4414.5,0.7269]
[1757583468882,0.7356,4414.6,4414.5,1.13453]
[1757583469692,0.7356,4414.6,4414.5,0.7269]
[1757583471384,0.7356,4414.6,4414.4,0.40764]
[1757583471385,0.1241,4414.5,4414.0,0.23]
[1757583471580,0.7356,4414.1,4414.0,0.23]
[1757583471988,0.7356,4414.1,4414.0,0.5448]
[1757583472190,0.7356,4414.1,4414.0,0.7442]
[1757583475288,0.7356,4413.7,4413.6,0.5142]
[1757583475490,3.9434,4413.7,4413.6,0.3148]
[1757583476798,3.9434,4413.7,4413.6,0.5142]
[1757583477197,3.9434,4413.7,4413.6,0.7269]
[1757583477400,0.2135,4413.7,4413.6,0.7269]
[1757583477792,3.9201,4414.3,4414.2,0.2122]
[1757583477996,4.1501,4414.3,4414.2,0.7259]
[1757583479095,4.1501,4414.3,4414.2,0.5274]
[1757583479395,4.1501,4414.3,4414.2,0.3152]
[1757583479595,3.8544,4414.3,4413.7,0.3152]
[1757583479798,0.2034,4413.8,4413.7,1.13361]
[1757583481499,0.2034,4413.8,4413.7,0.7259]
[1757583482094,0.2034,4413.8,4413.7,1.13361]
[1757583482504,0.2034,4413.8,4413.7,0.7259]
[1757583483003,0.7123,4413.8,4413.7,0.7259]
[1757583484012,0.7123,4413.8,4413.7,1.13361]
[1757583484803,0.2034,4414.1,4414.0,0.8484]
[1757583485903,0.2034,4414.1,4414.0,1.25608]
[1757583486205,0.2034,4414.1,4414.0,0.8484]
[1757583487802,0.7123,4414.1,4414.0,0.8484]
[1757583490300,0.2034,4414.1,4414.0,0.8484]
[1757583490505,3.2078,4414.3,4414.1,0.3152]
[1757583490814,3.7069,4414.3,4414.2,0.7259]
[1757583491111,3.9201,4414.3,4414.2,0.7259]
[1757583493208,3.6244,4414.3,4414.2,1.13356]
[1757583493515,3.4112,4414.3,4414.2,1.13356]
[1757583493706,3.9201,4414.3,4414.2,1.13356]
[1757583493906,3.9201,4414.3,4414.2,0.7259]
[1757583495715,3.9201,4414.3,4414.2,1.13356]
[1757583496615,3.2078,4414.3,4414.2,1.13356]
[1757583497305,3.7069,4414.3,4414.2,1.13356]
[1757583497515,3.6244,4414.3,4414.2,1.13356]
[1757583498219,3.9201,4414.3,4414.2,1.13356]
[1757583500324,3.4112,4414.3,4414.2,1.13356]
[1757583501518,3.7069,4414.3,4414.2,1.13356]
[1757583502127,3.4112,4414.3,4414.2,1.13356]
[1757583503028,3.7069,4414.3,4414.2,1.13356]
[1757583503221,3.9201,4414.3,4414.2,1.13356]
[1757583505724,0.2034,4414.3,4414.2,1.13356]
[1757583506626,0.5089,4414.9,4414.8,0.72281]
[1757583506833,0.4166,4414.9,4414.8,1.13351]
[1757583507130,0.4991,4415.2,4415.1,0.82438]
[1757583507331,0.7102,4415.2,4415.1,0.7082]
[1757583507530,0.7102,4415.2,4415.1,1.11578]
[1757583508033,0.7102,4415.2,4415.1,0.7082]
[1757583508234,0.7102,4415.2,4415.1,1.11578]
[1757583509926,0.7102,4415.2,4415.1,0.7082]
[1757583511637,0.7102,4415.2,4415.1,0.2914]
[1757583511930,0.7102,4415.2,4415.1,0.4945]
[1757583513532,0.7102,4415.2,4415.1,0.2914]
[1757583515736,0.7102,4415.2,4415.1,0.4945]
[1757583517737,0.2034,4415.2,4415.1,1.11578]
[1757583517933,3.4108,4415.5,4415.4,1.11575]
[1757583519035,3.7298,4415.5,4415.4,1.11575]
[1757583519236,0.522,4415.5,4415.4,1.11575]
[1757583520735,0.522,4415.5,4415.4,0.7082]
[1757583520935,0.7331,4415.5,4415.4,0.7082]
[1757583521138,0.7331,4415.5,4415.4,1.11575]
[1757583522232,0.23,4415.6,4415.5,0.4085]
[1757583522431,0.433,4415.6,4415.5,0.8253]
[1757583522631,0.752,4415.6,4415.5,0.8253]
[1757583523639,0.752,4415.6,4415.5,1.23284]
[1757583524541,0.752,4415.6,4415.5,0.8253]
[1757583525340,3.2078,4416.0,4415.5,0.8253]
[1757583525341,0.319,4415.9,4415.5,0.8253]
[1757583525534,0.203,4415.9,4415.8,0.4168]
[1757583526044,3.4378,4416.0,4415.8,0.4168]
[1757583526045,3.2078,4416.0,4415.8,0.4168]
[1757583526245,3.2078,4416.0,4415.9,1.11571]
[1757583526639,3.2078,4416.0,4415.9,0.7082]
[1757583526835,3.2078,4416.0,4415.9,1.11571]
[1757583528044,0.203,4416.6,4416.5,0.8253]
[1757583528343,0.203,4416.6,4416.5,4.0331]
[1757583529531,0.522,4416.9,4416.8,0.7082]
[1757583529737,0.203,4416.9,4416.8,0.7082]
[1757583530740,3.7298,4417.4,4417.3,0.4945]
[1757583530937,0.319,4417.3,4416.5,3.3249]
[1757583531139,0.319,4417.3,4416.3,0.40747]
[1757583531140,0.4141,4416.6,4416.3,0.40747]
[1757583531334,0.1248,4417.0,4416.1,0.2914]
[1757583531335,0.7331,4416.2,4416.1,0.2914]
[1757583531541,0.7331,4416.2,4416.1,0.4945]
[1757583535741,0.7331,4416.2,4416.1,0.2914]
[1757583535943,0.7331,4415.5,4415.4,3.7023]
[1757583536247,0.7331,4415.5,4414.5,0.1171]
[1757583536248,0.8148,4415.5,4415.1,0.2914]
[1757583536441,0.8148,4415.5,4415.2,0.2914]
[1757583537448,0.7425,4415.1,4415.0,0.96979]
[1757583537645,0.7425,4415.1,4415.0,1.17289]
[1757583538138,0.7425,4415.1,4415.0,1.46589]
[1757583538340,0.4271,4415.1,4415.0,1.46589]
[1757583539448,0.7425,4415.1,4415.0,1.0583]
[1757583540543,0.4271,4415.1,4415.0,1.0583]
[1757583540946,0.4271,4415.1,4415.0,1.46589]
[1757583541248,0.4271,4415.1,4415.0,1.0583]
[1757583541249,0.7425,4415.1,4415.0,1.0583]
[1757583541638,0.4271,4415.1,4415.0,1.46589]
[1757583541844,0.2139,4415.1,4415.0,1.46589]
[1757583543153,0.5293,4415.1,4415.0,1.0583]
[1757583543343,0.5293,4415.1,4415.0,1.46589]
[1757583544247,0.2139,4415.1,4415.0,1.46589]
[1757583545045,0.3154,4415.4,4415.1,0.40758]
[1757583545246,0.5293,4415.4,4415.3,0.7112]
[1757583547954,0.7425,4415.4,4415.3,0.7112]
[1757583550660,0.7425,4415.4,4415.0,0.1171]
[1757583550958,0.4271,4415.0,4414.9,0.2151]
[1757583551154,0.3154,4414.9,4414.8,3.2078]
[1757583551460,0.5468,4415.0,4414.5,0.293]
[1757583551461,0.7425,4414.6,4414.5,0.293]
[1757583552056,0.7425,4414.6,4414.2,0.293]
[1757583552356,0.1197,4415.0,4413.9,0.5081]
[1757583552357,0.4271,4414.0,4413.9,0.5081]
[1757583552559,0.7425,4414.0,4413.9,0.5081]
[1757583554862,0.8622,4414.0,4413.6,0.293]
[1757583555573,1.08876,4414.0,4413.6,0.293]
[1757583555758,0.4271,4413.4,4413.3,0.5081]
[1757583556067,0.7425,4413.4,4413.3,0.5081]
[1757583556961,0.7425,4413.4,4413.3,0.7112]
[1757583560475,0.7425,4413.4,4413.3,0.5081]
[1757583560865,0.7425,4413.4,4413.0,0.1239]
[1757583560866,0.7425,4413.4,4413.1,0.293]
[1757583561164,0.7425,4413.4,4413.0,0.1239]
[1757583561863,0.3154,4413.3,4413.0,0.53167]
[1757583562070,0.4271,4413.2,4413.1,1.11897]
[1757583562264,0.23,4413.5,4413.2,0.293]
[1757583562469,0.4439,4413.7,4413.6,1.11892]
[1757583564968,0.4439,4413.7,4413.6,0.7112]
[1757583565271,0.2139,4413.7,4413.6,0.7112]
[1757583566671,0.5293,4413.7,4413.6,0.7112]
[1757583566869,0.7425,4413.7,4413.6,0.7112]
[1757583567477,0.4271,4413.7,4413.6,0.7112]
[1757583567974,0.7357,4413.7,4413.6,0.7112]
[1757583570472,0.4271,4413.7,4413.6,0.7112]
[1757583570867,0.4271,4413.7,4413.6,1.11892]
[1757583571168,0.7357,4413.7,4413.6,0.7112]
[1757583571871,0.7357,4413.7,4413.6,0.5081]
[1757583572175,0.2139,4413.7,4413.6,0.7169]
[1757583572671,0.5225,4413.7,4413.6,0.7169]
[1757583572871,0.7224,4413.7,4413.6,0.7169]
[1757583575181,0.7224,4413.7,4413.1,0.3022]
[1757583580383,0.23,4413.6,4413.5,0.205]
[1757583580682,0.9358,4413.6,4413.5,0.5072]
[1757583581385,0.0951,4413.5,4413.0,0.1239]
[1757583581591,0.7058,4413.1,4413.0,0.5377]
[1757583581791,0.23,4413.6,4413.0,0.5377]
[1757583581986,0.7359,4413.6,4413.5,0.205]
[1757583582182,1.54854215,4413.6,4413.0,0.1239]
[1757583582384,0.3972,4413.2,4413.1,0.3022]
[1757583582580,0.7058,4413.2,4413.1,0.5072]
[1757583582783,0.7058,4413.2,4413.1,0.716]
[1757583583182,0.3972,4413.2,4413.1,0.716]
[1757583583786,0.3086,4413.4,4413.1,0.716]
[1757583583987,0.5386,4413.6,4413.1,0.4138]
[1757583584183,0.7359,4413.6,4413.5,0.532]
[1757583584388,0.81039434,4413.6,4413.5,0.8342]
[1757583584584,0.3086,4412.9,4412.7,0.3022]
[1757583584793,0.7058,4412.4,4412.3,0.5072]
[1757583586094,0.3972,4412.4,4412.3,0.716]
[1757583586494,0.7058,4412.4,4412.3,0.716]
[1757583589596,0.7058,4412.4,4412.3,0.5072]
[1757583591002,0.7058,4412.4,4412.3,0.3022]
[1757583592401,0.7058,4412.3,4412.2,0.205]
[1757583592598,0.7058,4412.3,4412.2,0.5072]
[1757583595401,0.7058,4412.3,4412.2,0.716]
[1757583595701,0.1973,4412.3,4412.2,0.716]
[1757583596003,0.23,4412.3,4412.2,0.716]
[1757583596595,3.6351,4412.6,4412.5,0.532]
[1757583596795,3.6351,4412.6,4412.5,0.8342]
[1757583597098,4.1436,4412.6,4412.5,0.716]
[1757583597705,4.1436,4412.6,4412.5,0.3022]
[1757583599004,4.1436,4412.6,4412.5,0.8356]
[1757583599205,3.9136,4412.6,4412.5,0.8356]
[1757583599503,4.1436,4412.6,4412.5,0.8356]
[1757583601404,3.9136,4412.6,4412.5,0.8356]
[1757583601606,4.1436,4412.6,4412.5,0.8356]
[1757583602301,4.1436,4412.6,4412.5,0.7146]
[1757583602700,4.1436,4412.6,4412.5,0.5004]
[1757583605409,3.9136,4412.6,4412.5,0.5004]
[1757583605705,4.1436,4412.6,4412.5,0.5004]
[1757583606509,0.4055,4412.2,4412.1,0.1982]
[1757583606701,0.7138,4412.2,4412.1,0.7169]
[1757583606896,0.1954,4412.2,4412.1,0.7169]
[1757583608308,0.3083,4412.5,4412.2,0.3045]
[1757583608910,0.3083,4412.5,4412.0,0.1182]
[1757583608911,0.5037,4412.5,4412.4,0.7169]
[1757583609408,0.7138,4412.5,4412.4,0.7169]
[1757583611201,0.7138,4412.5,4412.4,0.5027]
[1757583611601,0.7138,4412.5,4412.4,0.3045]
[1757583611797,0.8338,4412.5,4412.4,0.3045]
[1757583612110,0.7138,4412.5,4412.4,0.5027]
[1757583612701,0.7138,4412.5,4412.4,0.7169]
[1757583612903,0.9438,4412.5,4412.4,0.7169]
[1757583615612,0.7138,4412.5,4412.4,0.7169]
[1757583617206,0.229,4412.6,4412.4,0.7169]
[1757583617405,0.229,4412.6,4412.5,0.8379]
[1757583618417,0.4244,4412.6,4412.5,0.8379]
[1757583619411,0.1954,4412.6,4412.5,0.8379]
[1757583620018,0.7138,4412.6,4412.5,0.8379]
[1757583622613,0.7138,4412.6,4412.5,0.7169]
[1757583624308,0.7138,4412.6,4412.5,0.3045]
[1757583624913,0.7138,4412.6,4412.5,0.5027]
[1757583630918,0.7138,4412.6,4412.5,0.3045]
[1757583631118,0.4109,4412.5,4411.9,0.3067]
[1757583631318,0.4109,4412.5,4411.0,0.52615]
[1757583631319,0.2906,4411.6,4411.4,0.3067]
[1757583631516,0.7077,4411.5,4411.4,0.3067]
[1757583631713,0.7077,4411.5,4411.4,0.5047]
[1757583634331,0.7077,4411.5,4411.4,0.7074]
[1757583641219,0.229,4411.6,4411.5,0.4242]
[1757583641424,0.229,4411.6,4411.5,0.8249]
[1757583641627,0.7077,4412.3,4412.2,0.5047]
[1757583641841,0.8276,4412.0,4411.6,0.3067]
[1757583642030,0.7077,4411.7,4411.6,0.3067]
[1757583643931,0.7077,4411.7,4411.6,0.5047]
[1757583644317,0.7077,4411.7,4411.1,0.3067]
[1757583644524,0.7077,4411.0,4410.9,0.198]
[1757583644731,0.9367,4411.0,4410.9,0.198]
[1757583644926,0.9367,4411.0,4410.5,0.121]
[1757583645122,0.9367,4411.0,4410.6,0.3067]
[1757583645430,0.9367,4411.0,4410.9,0.5047]
[1757583647034,0.9367,4411.0,4410.9,0.7074]
[1757583647628,0.9367,4411.0,4410.9,0.5047]
[1757583647827,1.0558,4411.0,4410.6,0.3067]
[1757583648336,0.2105,4410.4,4410.3,0.7074]
[1757583649341,0.229,4410.6,4410.3,0.4007]
[1757583649534,0.2105,4410.6,4410.5,0.8249]
[1757583649725,0.229,4410.7,4410.6,0.5047]
[1757583649929,0.229,4410.7,4410.6,0.7074]
[1757583650131,0.7301,4410.7,4410.6,0.7074]
[1757583650332,0.9367,4410.7,4410.6,0.7074]
[1757583650730,0.6461,4410.7,4410.6,0.7074]
[1757583651032,0.229,4410.7,4410.6,0.7074]
[1757583651330,0.5011,4411.1,4411.0,0.8249]
[1757583651537,0.9367,4411.1,4411.0,0.8249]
[1757583652139,0.9367,4411.1,4411.0,0.7074]
[1757583652937,0.7077,4411.1,4411.0,0.8249]
[1757583653240,3.4368,4411.2,4411.1,0.7074]
[1757583654134,4.1445,4411.2,4410.5,0.1175]
[1757583654330,4.1445,4411.2,4410.6,0.3067]
[1757583658032,4.1445,4411.2,4411.1,0.7181]
[1757583660241,4.1445,4411.2,4411.1,0.5038]
[1757583660742,10.1445,4411.2,4411.1,0.5038]
[1757583661535,10.1445,4411.2,4410.6,0.3058]
[1757583662841,10.1445,4411.2,4410.0,0.52557]
[1757583662842,0.4093,4409.8,4409.7,3.2078]
[1757583663043,0.4093,4409.8,4409.0,0.1274]
[1757583663044,0.7068,4409.4,4409.3,0.7334]
[1757583663234,0.6383,4409.4,4409.2,3.2078]
[1757583663439,0.7068,4409.3,4409.2,3.2078]
[1757583663635,0.7068,4409.3,4409.2,3.7269]
[1757583665348,0.7068,4409.3,4409.2,3.9412]
[1757583666443,0.4093,4409.3,4409.2,3.9412]
[1757583666643,0.2101,4409.6,4409.5,0.555]
[1757583666843,0.4391,4409.6,4409.5,0.8608]
[1757583667238,0.2101,4409.6,4409.5,0.8608]
[1757583667439,0.4391,4409.6,4409.5,0.8608]
[1757583667649,0.7068,4409.6,4409.5,0.8608]
[1757583667945,0.7068,4409.4,4409.3,0.5201]
[1757583668145,0.4093,4409.4,4409.3,0.7334]
[1757583668538,0.7068,4409.4,4409.3,0.7334]
[1757583669136,0.2975,4409.9,4409.4,0.3058]
[1757583669348,3.9146,4410.2,4410.1,0.2133]
[1757583669543,3.9146,4410.2,4410.1,0.5191]
[1757583669544,4.1436,4410.2,4410.1,0.5191]
[1757583670040,4.1436,4410.2,4409.6,0.3058]
[1757583670344,0.2975,4409.9,4409.3,0.3058]
[1757583670552,0.7068,4409.9,4409.8,0.7334]
[1757583670845,0.9358,4409.9,4409.8,0.7334]
[1757583674048,0.9358,4409.9,4409.6,0.3058]
[1757583674646,0.6383,4409.9,4409.3,0.3058]
[1757583674946,0.2101,4409.4,4409.3,0.7334]
[1757583675955,0.229,4409.9,4409.3,0.7334]
[1757583675956,0.5265,4409.9,4409.3,0.4276]
[1757583676144,0.6383,4409.9,4409.8,0.2133]
[1757583676346,0.9358,4409.9,4409.8,0.5191]
[1757583676552,0.9358,4409.9,4409.8,0.7334]
[1757583677047,0.6383,4409.9,4409.8,0.7334]
[1757583677253,0.229,4409.9,4409.8,0.7334]
[1757583677648,3.5053,4410.2,4409.8,0.7334]
[1757583677853,0.7257,4410.1,4410.0,0.3407]
[1757583678046,0.9358,4410.1,4410.0,0.6465]
[1757583678553,4.81798,4409.4,4409.3,0.2024]
[1757583678751,4.81798,4409.4,4409.3,0.83730999]
[1757583678947,4.81798,4409.4,4409.3,0.61053]
[1757583679554,4.81798,4409.4,4409.3,4.83732]
[1757583679747,3.52578,4409.4,4409.3,4.83732]
[1757583679951,3.17718,4409.4,4409.3,4.83732]
[1757583680742,0.332,4410.0,4409.9,0.40808]
[1757583680947,0.332,4410.0,4409.9,3.61588]
[1757583681645,0.332,4410.0,4409.9,3.2078]
[1757583681847,0.5312,4410.0,4409.9,3.2078]
[1757583682152,0.5312,4410.0,4409.9,3.61588]
[1757583682758,0.8287,4410.0,4409.9,3.61588]
[1757583683450,0.6295,4410.0,4409.9,3.61588]
[1757583684544,0.1219,4411.5,4410.8,0.40799]
[1757583684748,0.1219,4411.5,4411.1,0.40796]
[1757583685149,0.2101,4411.3,4411.2,0.40796]
[1757583685745,0.332,4411.5,4411.4,0.40794]
[1757583686156,0.332,4411.5,4411.4,3.61574]
[1757583686564,0.6295,4411.5,4411.4,3.61574]
[1757583687560,0.4194,4411.5,4411.4,3.61574]
[1757583687872,0.4194,4411.5,4411.4,3.84474]
[1757583688166,0.823,4411.5,4411.4,3.2078]
[1757583688366,0.4036,4410.8,4410.7,3.4368]
[1757583688567,0.7071,4410.8,4410.7,3.4368]
[1757583689069,0.7071,4410.8,4410.7,3.2078]
[1757583689268,0.7071,4410.8,4410.7,3.4368]
[1757583689469,0.7071,4410.8,4410.7,3.2078]
[1757583689669,0.7071,4410.8,4410.7,3.4368]
[1757583691865,0.7071,4410.3,4410.2,3.2078]
[1757583692070,0.7071,4410.3,4410.2,3.4368]
[1757583692769,0.7071,4410.3,4410.2,3.2078]
[1757583693469,0.7071,4410.3,4410.0,0.229]
[1757583693771,0.7071,4409.6,4409.5,3.2078]
[1757583693972,0.7071,4409.6,4409.5,3.4368]
[1757583694880,0.5104,4409.6,4409.5,3.4368]
[1757583695175,0.7071,4409.6,4409.5,3.2078]
[1757583695481,0.1191,4410.0,4409.2,0.63714]
[1757583695482,0.5104,4409.3,4409.2,0.63714]
[1757583695666,0.5104,4409.3,4409.0,3.2078]
[1757583695667,0.3035,4409.2,4409.0,3.2078]
[1757583695868,0.7071,4409.1,4409.0,3.2078]
[1757583698576,0.5104,4409.1,4409.0,3.2078]
[1757583699181,0.5104,4409.1,4409.0,3.4368]
[1757583699382,0.3035,4409.1,4409.0,3.4368]
[1757583700379,0.3035,4409.1,4409.0,6.40472631]
[1757583702676,0.7071,4409.1,4409.0,3.4368]
[1757583706182,0.7071,4409.1,4409.0,3.84496]
[1757583706582,0.7071,4409.1,4409.0,3.4368]
[1757583708384,0.7071,4409.1,4409.0,3.84496]
[1757583708676,0.3035,4409.1,4409.0,3.84496]
[1757583709284,0.5104,4409.1,4409.0,3.84496]
[1757583710383,0.5104,4409.1,4409.0,3.61596]
[1757583710583,0.5104,4409.1,4409.0,3.84496]
[1757583710883,0.7071,4409.1,4409.0,3.84496]
[1757583711592,0.7071,4409.1,4409.0,3.61596]
[1757583711779,0.7071,4409.1,4409.0,3.84496]
[1757583712387,0.3035,4409.1,4409.0,3.84496]
[1757583713189,0.5104,4409.1,4409.0,3.84496]
[1757583719086,0.3035,4409.1,4409.0,3.84496]
[1757583719390,0.5165,4409.5,4409.3,0.40813]
[1757583719594,0.5165,4409.5,4409.0,6.12791517]
[1757583719595,0.5165,4409.5,4409.4,0.63713]
[1757583721294,0.8335,4409.5,4409.4,0.229]
[1757583721488,0.5165,4409.5,4409.4,0.229]
[1757583721693,0.7144,4409.4,4409.3,0.40813]
[1757583721895,0.7144,4409.4,4409.3,0.63713]
[1757583723290,0.5133,4409.4,4409.3,0.63713]
[1757583723592,0.1191,4410.0,4409.9,0.40808]
[1757583723892,0.1191,4410.0,4409.9,3.84488]
[1757583724691,0.1191,4410.0,4409.9,6.74504831]
[1757583725199,0.1191,4410.0,4409.9,20.14504831]
[1757583725694,0.1191,4410.0,4409.9,6.74504831]
[1757583725695,0.4361,4410.0,4409.9,6.74504831]
[1757583726093,0.4361,4410.0,4409.9,24.14504831]
[1757583728897,0.4361,4410.0,4409.9,24.32376066]
[1757583731393,0.1191,4410.5,4410.4,0.40803]
[1757583731702,0.4361,4410.5,4410.4,6.78092865]
[1757583733894,1.4361,4410.5,4410.4,6.78092865]
[1757583735401,1.4361,4410.5,4410.4,6.96384153]
[1757583737406,1.6324,4410.5,4410.4,6.96384153]
[1757583737696,1.8335,4410.5,4410.4,6.37289865]
[1757583739899,1.8335,4410.5,4410.4,3.2078]
[1757583740097,1.4361,4410.5,4410.4,3.84483]
[1757583740397,1.4361,4410.5,4410.4,6.77703971]
[1757583744106,0.1186,4411.5,4410.7,1.02002]
[1757583744107,0.3149,4411.5,4410.7,1.02002]
[1757583744402,0.3149,4411.5,4411.4,3.2078]
[1757583744403,0.516,4411.5,4411.4,3.2078]
[1757583744595,0.516,4411.5,4411.4,3.4368]
[1757583746200,0.833,4411.5,4411.4,3.4368]
[1757583747595,0.833,4411.5,4411.4,3.84474]
[1757583747800,0.833,4411.5,4411.4,3.4368]
[1757583750508,0.833,4411.5,4411.4,3.2078]
[1757583750807,0.833,4411.5,4411.4,3.4368]
[1757583753903,0.833,4411.5,4411.4,3.2078]
[1757583754108,0.833,4411.5,4411.4,3.4368]
[1757583756114,0.833,4411.5,4411.4,3.2078]
[1757583756313,0.833,4411.5,4411.4,3.4368]
[1757583760016,0.833,4411.5,4411.4,3.2078]
[1757583766723,0.4356,4411.5,4411.4,3.2078]
[1757583771823,0.2988,4411.9,4411.4,3.2078]
[1757583772027,0.1186,4412.0,4411.5,0.63693]
[1757583772028,0.3267,4412.0,4411.5,0.63693]
[1757583772527,0.2988,4411.9,4411.5,0.229]
[1757583773134,0.2988,4411.9,4411.5,0.63693]
[1757583773829,0.8345,4411.5,4411.4,3.2078]
[1757583774223,0.8345,4411.5,4411.4,3.4368]
[1757583778435,0.8345,4411.5,4411.4,3.2078]
[1757583796162,0.8345,4411.5,4410.7,0.229]
[1757583796163,0.8383,4411.0,4410.7,0.229]
[1757583796454,3.2078,4411.7,4410.7,1.81123249]
[1757583796648,1.73675884,4412.5,4412.1,0.40785]
[1757583796649,0.1283,4412.5,4412.1,0.40785]
[1757583796843,0.1283,4412.5,4412.4,3.2078]
[1757583797048,0.1283,4413.0,4412.4,3.4398]
[1757583797049,0.3129,4412.9,4412.4,3.4398]
[1757583797245,0.1283,4413.0,4412.7,0.40779]
[1757583797449,0.4412,4413.0,4412.9,3.2078]
[1757583797649,0.4412,4413.0,4412.9,3.4398]
[1757583798258,0.6374,4413.0,4412.9,3.4398]
[1757583798956,0.6374,4413.0,4412.9,3.72072017]